Cogmind - Beta 16.1 @@@ ROGUE MODE // 2026.04.03 @ 15:16:51 Player: Lazz Result: Destroyed by Y-54 Guardian with Flak Gun Performance ------------- Evolutions (0) 0 Regions Visited (3) 600 Robots Destroyed (9) 45 Value Destroyed (106) 106 Prototype IDs (19) 380 Alien Tech Used (0) 0 Bonus (0) 0 TOTAL SCORE: 1131 Bonus ------- None Cogmind --------- Core Integrity 0/250 Matter 300/300 Energy 100/100 System Corruption 0% Temperature Cool (12) Movement Core (100) Ox1 Location -7/Recycling Parts ------- > --- POWER (1) -------- (None) > --- PROPULSION (2) --- (None) > --- UTILITY (2) ------ Small Storage Unit Signal Interpreter > --- WEAPON (2) ------- (None) > --- INVENTORY (8) ---- High-capacity Matter Pod (200) Sensor Array Power Bank 1B-0RG's Assimilator Peak State ------------ > --- POWER ------------ Light Ion Engine > --- PROPULSION ------- Light Treads Light Treads > --- UTILITY ---------- Small Storage Unit Signal Interpreter > --- WEAPON ----------- Riot Gun Mining Laser > --- INVENTORY -------- High-capacity Matter Pod Sensor Array Power Bank 1B-0RG's Assimilator [Rating: 16] Favorites ----------- Power Light Ion Engine Engine Light Ion Engine Power Core Micro Nuclear Core Propulsion Light Treads Treads Light Treads Utility Small Storage Unit Device Sensor Array Storage Small Storage Unit Processor Signal Interpreter Weapon Medium Laser Energy Gun Medium Laser Ballistic Gun Light Assault Rifle Ballistic Cannon Advanced Assault Cannon Special Weapon Mining Laser Build | -11 -10 -10 -7 ------- Run | Yrd Mat Sub Rec Slots Evolved . | . . . . Power . | . . . . Propulsion . | . . . . Utility . | . . . . Weapon . | . . . . Parts Attached 14 | 7 2 3 2 Power 2 | 1 . . 1 Engine 1 | 1 . . . Core 1 | . . . 1 Reactor . | . . . . Propulsion 2 | 2 . . . Treads 2 | 2 . . . Leg . | . . . . Wheel . | . . . . Hover . | . . . . Flight . | . . . . Utility 4 | 2 1 1 . Device 1 | . 1 . . Storage 2 | 2 . . . Processor 1 | . . 1 . Hackware . | . . . . Protection . | . . . . Artifact . | . . . . Weapon 6 | 2 1 2 1 Energy Gun 3 | 2 . 1 . Energy Cannon . | . . . . Ballistic Gun 1 | . . 1 . Ballistic Cannon 1 | . . . 1 Launcher . | . . . . Special Weapon 1 | . 1 . . Impact Weapon . | . . . . Slashing Weapon . | . . . . Piercing Weapon . | . . . . Special Melee Weapon . | . . . . Unidentified Prototypes . | . . . . Parts Lost 6 | . . 5 1 Power 2 | . . 1 1 Propulsion 2 | . . 2 . Utility . | . . . . Weapon 2 | . . 2 . Highest Loss Streak 4 | . . 4 1 To Critical Strikes . | . . . . Average Backups 4 | 1 4 4 4 Power . | . . . . Propulsion . | 1 2 . . Utility 2 | . 1 2 3 Weapon . | . 1 . . Tool/Special . | . . . . Unused Backups 5 | . . 2 3 Power . | . . . . Propulsion 2 | . . 2 . Utility 2 | . . . 2 Weapon . | . . . . Tool/Special 1 | . . . 1 Average Slot Usage (%) 75 | . 92 95 36 Engine 9 | . 14 13 . Core 2 | . . . 8 Treads 18 | . 28 27 . Device 3 | . 4 4 . Storage 13 | . 15 12 14 Processor 10 | . . 11 14 Energy Gun 10 | . 22 13 . Special Weapon 6 | . 5 10 . Peak Build Rating 16 | 7 7 16 14 Average Rating 10 | 5 6 12 11 On Entrance 6 | . 7 7 10 Avg Prop Armor Cover (%) . | . . . . Naked Turns . | . . . . Heaviest Build 13 | 13 13 12 11 Greatest Support 40 | 40 40 40 3 Greatest Overweight (x) 3 | . . 1 3 Average Overweight (x) . | . . . 1 Largest Inventory Capacity 8 | 8 8 8 8 Average Capacity 7 | 7 8 7 8 Most Carried 8 | 3 5 8 8 Average Carried 6 | 1 4 6 8 Final Capacity 8 | 8 8 8 8 Final Carried 8 | 3 5 8 8 Class Distribution -------------------- 100% | Mutant Dominant Class ---------------- Mutant | -10/Materials Mutant | -10/Subcaves Mutant | -7/Recycling Resources | -11 -10 -10 -7 ----------- Run | Yrd Mat Sub Rec Matter Collected 601 | 317 56 208 20 Remotely . | . . . . Salvage Created 200 | 96 . 104 . Parts 15 | 8 . 7 . Haulers Intercepted . | . . . . Recyclers Shooed . | . . . . Parts Field Recycled . | . . . . Retrieved Matter . | . . . . Parts Self-Destructed 5 | . . 5 . Prevented . | . . . . Parts Restored . | . . . . Kills | -11 -10 -10 -7 ------- Run | Yrd Mat Sub Rec Combat Hostiles Destroyed 5 | . . 5 . Guns 1 | . . 1 . AOE 3 | . . 3 . Classes Destroyed 4 | 2 . 2 . Worker 2 | 2 . . . Tunneler 2 | 2 . . . Swarmer 4 | . . 4 . Subdweller 1 | . . 1 . Best Kill Streak 4 | 3 . 4 . Combat Bots Only 4 | . . 4 . Max Kills in Single Turn 3 | 1 . 3 . Gunslinging . | . . . . Exploded 3 | . . 3 . Melee . | . . . . Uniques/NPCs Destroyed . | . . . . Combat | -11 -10 -10 -7 -------- Run | Yrd Mat Sub Rec Hostile Shots Fired 178 | . . 124 54 Missed 82 | . . 55 27 Hits 96 | . . 69 27 Projectile 96 | . . 69 27 Damage Taken 813 | . . 635 178 Core 254 | . . 136 118 Absorbed by Shields . | . . . . Core Remaining (%) 100 | 100 . . . Volleys Fired 25 | 5 1 19 . Largest 2 | 2 1 2 . Hottest 100 | 90 100 100 . Shots Fired 32 | 10 1 21 . Gun 26 | 10 . 16 . Cannon . | . . . . Launcher . | . . . . Special 6 | . 1 5 . Kinetic 4 | . . 4 . Thermal 16 | 10 1 5 . Explosive . | . . . . Electromagnetic 12 | . . 12 . Robot Hit Streak 8 | 6 . 8 . Robot Miss Streak 4 | 1 . 4 . Penetration Max . | . . . . Secondary Targets 1 | . . 1 . Max Gunslinging Chain 1 | . . 1 . Shots Hit Robots 19 | 6 . 13 . Core Hits 10 | 4 . 6 . Critical Kills . | . . . . Critical Parts Destroyed . | . . . . Critical Strikes 1 | 1 . . . Burn 1 | 1 . . . Melee Attacks . | . . . . Impact . | . . . . Slashing . | . . . . Piercing . | . . . . Sneak Attacks . | . . . . Combat Hostiles . | . . . . Follow-up Attacks . | . . . . Damage Inflicted 357 | 95 . 262 . Guns 268 | 95 . 173 . Cannons . | . . . . Explosions 89 | . . 89 . Melee . | . . . . Ramming . | . . . . Kinetic 17 | . . 17 . Thermal 184 | 95 . 89 . Explosive . | . . . . Electromagnetic 156 | . . 156 . Impact . | . . . . Slashing . | . . . . Piercing . | . . . . Highest Corruption . | . . . . Average Corruption . | . . . . Corruption Purged . | . . . . Corruption Blocked . | . . . . Overload Shots . | . . . . Overflow Damage . | . . . . Projectiles . | . . . . Explosions . | . . . . Melee . | . . . . Knockbacks . | . . . . Impact . | . . . . Kinetic . | . . . . Secondary . | . . . . Self-Inflicted Damage 30 | . . 30 . Shots 1 | . . 1 . Rammed . | . . . . Targets Rammed . | . . . . Kicked . | . . . . Crushed . | . . . . Highest Temperature 72 | 72 20 27 . Average Temperature 30 | 37 10 17 . Received Heat Transfer 414 | . . 360 54 Siege Activations . | . . . . Martial Activations . | . . . . Shielding Activations . | . . . . Robots Disrupted . | . . . . Combat Hostiles . | . . . . Robots Corrupted 1 | . . 1 . Combat Hostiles 1 | . . 1 . Parts Fried 1 | . . 1 . Impact Corruptions . | . . . . Robots Melted . | . . . . Combat Hostiles . | . . . . Parts Melted . | . . . . Heat Transferred 384 | 334 . 50 . Parts Sabotaged . | . . . . Parts Stolen . | . . . . Parts Stripped . | . . . . Power Chain Reactions 1 | . . 1 . Alert | -11 -10 -10 -7 ------- Run | Yrd Mat Sub Rec Maximum Alert Level . | . . . . Low Security (%) 100 | 100 100 . 100 Level 1 . | . . . . Level 2 . | . . . . Level 3 . | . . . . Level 4 . | . . . . Level 5 . | . . . . High Security . | . . . . Max Security . | . . . . Peak Influence 25 | 15 15 . 25 Initial 25 | . 3 . 25 Average 1 | 1 1 . 2 Influence Increases 181 | 20 22 110 29 Destroy 0b10 Robot/C 80 | . . 80 . Destroy 0b10 Robot/NC 20 | 20 . . . Successful Hack 36 | . 7 . 29 Disable Machine 15 | . 15 . . Lose Combat Pursuer 30 | . . 30 . Influence Decreases 181 | 15 27 56 83 Entered New Map 31 | . 2 . 29 Time Decay 80 | 15 25 16 24 Lost Part 40 | . . 40 . Purge Threat 30 | . . . 30 Squads Dispatched . | . . . . Investigation . | . . . . Extermination . | . . . . Reinforcement . | . . . . Assault . | . . . . Garrison . | . . . . Intercept . | . . . . Searches Triggered . | . . . . Construction Impeded . | . . . . Haulers Reinforced . | . . . . Active Scanning Responses . | . . . . Cargo Convoy Interrupts . | . . . . Stealth | -11 -10 -10 -7 --------- Run | Yrd Mat Sub Rec Distress Signals . | . . . . Communications Jammed . | . . . . Distress Signals . | . . . . Times Spotted 11 | . 1 9 1 Peak Tracking Total 6 | . 1 6 1 Tactical Retreats 1 | . . 1 . Traps | -11 -10 -10 -7 ------- Run | Yrd Mat Sub Rec Traps Triggered 1 | . . 1 . Indirectly . | . . . . Trap Hack Attempts . | . . . . Triggered . | . . . . Disarmed . | . . . . Reprogrammed . | . . . . Reused . | . . . . Traps Extracted . | . . . . Installed 1 | . . 1 . Triggered . | . . . . Machines | -11 -10 -10 -7 ---------- Run | Yrd Mat Sub Rec Machines Disabled 2 | . 1 1 . Max in Single Turn 1 | . 1 1 . Machines Repaired . | . . . . Machines Dismantled . | . . . . Machines Sabotaged . | . . . . Overloaded Fab Kills . | . . . . Hacking | -11 -10 -10 -7 --------- Run | Yrd Mat Sub Rec Machines Accessed 4 | . 1 1 2 Terminals 3 | . 1 . 2 Fabricators . | . . . . Repair Stations . | . . . . Recycling Units . | . . . . Scanalyzers . | . . . . Garrison Access . | . . . . Total Hacks 19 | . 2 9 8 Successful 13 | . 1 9 3 Failed 6 | . 1 . 5 Catastrophic 2 | . . . 2 Database Lockouts . | . . . . Manual . | . . . . Terminals 10 | . 2 . 8 Fabricators . | . . . . Repair Stations . | . . . . Recycling Units . | . . . . Scanalyzers . | . . . . Garrison Access . | . . . . Terminal Hacks 13 | . 1 9 3 Record 8 | . . 8 . Prototype ID Bank 2 | . . . 2 Scanalyzer Index 1 | . 1 . . Unreport Threat 1 | . . . 1 Proto ID Catalog 1 | . . 1 . Fabricator Hacks . | . . . . Repair Station Hacks . | . . . . Recycling Unit Hacks . | . . . . Scanalyzer . | . . . . Garrison Access Hacks . | . . . . Unauthorized Hacks . | . . . . Terminals . | . . . . Fabricators . | . . . . Repair Stations . | . . . . Recycling Units . | . . . . Scanalyzers . | . . . . Garrison Access . | . . . . Data Cores Recovered . | . . . . Used . | . . . . Hacking Detections 3 | . 1 . 2 Full Trace Events 2 | . . . 2 Feedback Events . | . . . . Feedback Blocked . | . . . . Robot Schematics Acquired . | . . . . Robots Built . | . . . . Authchips . | . . . . Time . | . . . . Total Robot Build Rating . | . . . . Part Schematics Acquired . | . . . . Parts Built . | . . . . Authchips . | . . . . Time . | . . . . Total Part Build Rating . | . . . . Part Studies Acquired . | . . . . Parts Repaired . | . . . . Time . | . . . . Parts Recycled . | . . . . Recycled Matter . | . . . . Retrieved Matter . | . . . . Retrieved Components . | . . . . Parts Scanalyzed . | . . . . Part Schematics Acquired . | . . . . Parts Damaged . | . . . . Bothacking | -11 -10 -10 -7 ------------ Run | Yrd Mat Sub Rec Used RIF Installer . | . . . . Robots Hacked . | . . . . Non-combat . | . . . . Combat . | . . . . Robot Hacks Applied . | . . . . Relay Couplers Released . | . . . . Fabnet Peak Effective % . | . . . . Robots Rewired . | . . . . Allies Hacked . | . . . . Hacks Repelled . | . . . . Allies | -11 -10 -10 -7 -------- Run | Yrd Mat Sub Rec Total Allies . | . . . . Largest Group . | . . . . Highest-Rated Group . | . . . . Highest-Rated Ally . | . . . . Total Orders . | . . . . Ally Attacks . | . . . . Total Damage . | . . . . Kills . | . . . . Allies Corrupted . | . . . . Allies Melted . | . . . . Intel | -11 -10 -10 -7 ------- Run | Yrd Mat Sub Rec Active Infowar (turns) 352 | . 86 266 . Sensors 352 | . 86 266 . Robot Analysis Total . | . . . . Derelict Logs Recovered 1 | . . 1 . Drone Launches . | . . . . Drone Recoveries . | . . . . Exploration | -11 -10 -10 -7 ------------- Run | Yrd Mat Sub Rec Turns Passed 1630 | 131 227 771 501 Spaces Moved 933 | 51 112 428 342 Core 352 | 7 . 3 342 Treads 581 | 44 112 425 . Legs . | . . . . Wheels . | . . . . Hover . | . . . . Flight . | . . . . Fastest Speed 50 | 50 160 100 100 Average Speed 153 | 144 160 159 145 Slowest Speed 200 | 160 160 160 200 Overloaded Moves . | . . . . Propulsion Burnouts . | . . . . Robots Hopped . | . . . . Potential Cave-ins . | . . . . Cave-ins Triggered . | . . . . Exploration Rate (%) 23 | 3 14 24 52 Regions Visited 3 Branch Regions 2 Pre-discovered Areas 1 | . . 1 . Known Exits Taken 1 | . . 1 . Unknown Exits Taken 2 | 1 1 . . Scrap Searched 5 | . . 5 . Spaces Dug . | . . . . Terrain Destroyed 6 | . . 6 . Melee . | . . . . Projectile . | . . . . AOE 6 | . . 6 . Terrain Rammed . | . . . . Walls Destroyed . | . . . . Machines Disabled . | . . . . Actions | -11 -10 -10 -7 --------- Run | Yrd Mat Sub Rec Total 1082 | 95 156 485 346 Wait 95 | 30 39 26 . Move 930 | 50 111 427 342 Hop . | . . . . Pick Up 8 | 3 2 3 . Fast Attach 12 | 7 1 2 2 Attach . | . . . . Detach . | . . . . Swap 3 | . 1 2 . Drop 8 | . 1 5 2 Fire 25 | 5 1 19 . Melee . | . . . . Ram . | . . . . Kick . | . . . . Crush . | . . . . Escape Stasis . | . . . . Rewire . | . . . . Trap 1 | . . 1 . Miscellaneous . | . . . . Route ------- -11/Scrapyard -10/Materials -10/Subcaves -7/Recycling (discovered 1 exit: [*Fac]) History --------- Turn | Location | Event 7 | -11/Scrapyard | Discovered new exit (range 16) 132 | -11/Scrapyard | Entered Materials 210 | -10/Materials | Discovered new exit (range 8) 313 | -10/Materials | Build established: Mutant 359 | -10/Materials | Entered Subcaves 360 | -10/Subcaves | Approached by a straggling Scientist 612 | -10/Subcaves | Visited 4L-MR0's lab 628 | -10/Subcaves | Found Prototype Special Melee Weapon 637 | -10/Subcaves | Found Power Bank 709 | -10/Subcaves | Shifting Twisted Machinery released Flamer 712 | -10/Subcaves | Shifting Twisted Machinery released Riot Gun 1107 | -10/Subcaves | Discovered new exit (range 15) 1126 | -10/Subcaves | Core integrity fell below 50% 1129 | -10/Subcaves | Identified exit to Recycling 1130 | -10/Subcaves | Entered Recycling 1158 | -7/Recycling | Lost 4 parts (1p2n1w) 1458 | -7/Recycling | Discovered new exit (range 15) 1616 | -7/Recycling | Core integrity fell below 20% 1631 | -7/Recycling | Destroyed by Y-54 Guardian with Flak Gun Last Messages --------------- 01143_ Connecting with Terminal... >>Prototypes Downloading prototype IDs... Cld. Cesium-ion Thruster Imp. Cesium-ion Thruster >>Alert(Purge) Purged threat record, alert level lowered. 01232_ Acquired 10 matter. 01305_ Acquired Mic. Nuclear Core. 01374_ Connecting with Terminal... >>Prototypes Downloading prototype IDs... Aerolev Unit Com. Ion Cannon Prc. Beam Rifle Exp. Propulsion Shielding 01458_ EXIT=FOUND 01538_ Acquired 10 matter. 01580_ Y-54 Guardian springs to life. 01615_ Mic. Nuclear Core destroyed. Map ----- +----------------------------------------------------+ | ???????????????????????????????????????????? | | ?????????????????##############????????????? | | ?????????????????# T #????????????? | | ???????????????### #????????????? | | ???????????????#"" """ """ #????????????? | | ???????????????#"Y """ """ #????????????? | | ???????????????#"" """ """ #????????????? | | ?????????????????# #????????????? | | ?????????????????# """ """ #????????????? | | ?????????????????# """ """ #????????????? | | ?????????????????# """ """ #????????????? | | ?????????????????# #????????????? | | ?????????????????# #????????????? | | ?????????????????# Y #????????????? | | ?????????????????########/#####????????????? | | ???????????????????????# #???????????????? | | ???????????????????????# #???????????????? | | ???????????????????????# #???????????????? | | ??????????????????????## #???????????????? | | ??????????????????????# ###?????????????? | | ??????????????????????## * #?????????????? | | ???????????????????????# *#?????????????? | | ???????????????????????# **#?????????????? | | ???????????????????###?# ###?????????????? | | ?????????????####### ### #???????????????? | | ????????????## !! # @ #???????????????? | | ????????????# ! # #???????????????? | | ?????????????# # #???????????????? | | ?????????????# # #???????????????? | | ?????????????# + #???????????????? | | ?????????????# # #???????????????? | | ?????????????# # #???????????????? | | ?????????????# % !# #???????????????? | | ?????????????########### #???????????????? | | ???????????????????????# #???????????????? | | ?????????????########### #???????????????? | | ?????????????# # #???????????????? | | ?????????????# # #???????????????? | | ?????????????# "" """ # #???????????????? | | ?????????????# "" """ + #???????????????? | | ?????????????+ "T """ # #???????????????? | | ?????????????# "" # #???????????????? | | ?????????????# "" # #???????????????? | | ?????????????+ # #???????????????? | | ?????????????##+######## #???????????????? | | ??????????????# #??????# #???????????????? | | ????##+######## #??????# #???????????????? | | ????# # #??????# #???????????????? | | ????# # #??????# #???????????????? | | ? ??+ # #??????# #???????????????? | +----------------------------------------------------+ Best States ------------- Heat Dissipation 25 Energy Generation 15 Energy Capacity 150 Matter Stores 356 Matter Capacity 400 Sight Range 16 Robot Scan Range 14 Terrain Scan Density 10 Evasion (%) 40 Recoil Reduction 2 Item Schematics ----------------- None Robot Schematics ------------------ None Fabricated ------------ Nothing Repaired ---------- Nothing Studied --------- None Alien Tech Used ----------------- None Achievements -------------- None Challenges ------------ None Game ------ Seed FusionCombatFirepult Manual? 0 Play Time 00:11:01 Cumulative 146.6 hours Start 2026.04.03 @ 15:07:40 End 2026.04.03 @ 15:16:51 Sessions 1 Manual Loads 0 Difficulty Rogue Special Mode None Game No. 215 Rogue 215 Adventurer 0 Explorer 0 Win Type - Total 1 Types 1/0/0/0/0/0/0/0/0/0 Lore% 65 Gallery% 57 Achievement% 43 Wizard Run 0 Options --------- Layout 2 ASCII 0 Keyboard 0 Movement Mouse Keybinds 0 Fullscreen 1 Font 24/Smallcaps Map View 50x44 Zoom Use 0% Tactical HUD 1 Map Filters NONE Filters NONE Steam 1 RUN: 69dad783-5983-424d-8b44-7c80ef12ba6f